bitfinex/quotes_SOLUSD_20250721
["timestamp","ask_amount","ask_price","bid_price","bid_amount"]
[1753110787150,16.78468397,197.15,197.13,40.42]
[1753110787350,16.78468397,197.15,197.14,40.42]
[1753110787561,32.43329802,197.16,197.1,15.64861405]
[1753110787857,32.43329802,197.13,197.07,15.64861405]
[1753110788237,32.43329802,197.14,197.08,15.64861405]
[1753110788434,16.78468397,197.09,197.04,16.80554667]
[1753110788657,16.78468397,197.09,197.05,40.42]
[1753110788862,16.78468397,197.09,197.05,56.06861405]
[1753110789158,15.64861405,197.11,197.05,15.64861405]
[1753110789559,15.64861405,197.07,197.06,40.42]
[1753110789859,16.78468397,197.07,197.06,40.42]
[1753110790358,15.64861405,197.07,197.05,40.42]
[1753110790529,16.78468397,197.08,197.04,0.46693262]
[1753110790530,16.78468397,197.05,197.04,0.46693262]
[1753110790937,33.15329802,197.05,197.04,0.46693262]
[1753110791132,16.78468397,197.05,197.04,0.46693262]
[1753110791451,16.78468397,197.08,197.04,0.46693262]
[1753110791648,32.43329802,197.08,197.04,0.46693262]
[1753110792161,15.64861405,197.05,197.04,0.46693262]
[1753110792456,15.64861405,197.05,197.03,0.03]
[1753110792645,17.50468397,197.04,197.03,0.03]
[1753110792849,33.15329802,197.04,197.03,0.03]
[1753110793058,33.15329802,197.04,197.0,1.0]
[1753110793059,16.78468397,197.03,197.0,1.0]
[1753110793234,16.78468397,197.01,197.0,1.0]
[1753110794856,16.78468397,197.01,196.93,0.50779464]
[1753110794857,16.78468397,197.0,196.9,56.75861405]
[1753110795168,38.22918249,197.01,196.9,56.75861405]
[1753110795169,16.78468397,196.94,196.9,56.75861405]
[1753110795361,16.78468397,196.95,196.9,56.75861405]
[1753110795534,16.78468397,196.93,196.89,0.44282489]
[1753110795731,16.78468397,196.93,196.89,16.09143894]
[1753110796071,16.78468397,196.94,196.89,16.78143894]
[1753110796269,16.78468397,196.91,196.89,0.44282489]
[1753110796559,0.72,196.93,196.89,40.86282489]
[1753110796560,32.43329802,196.9,196.89,40.86282489]
[1753110796741,33.15329802,196.9,196.89,0.44282489]
[1753110797136,16.78468397,196.89,196.85,40.42]
[1753110797442,0.72,196.9,196.88,15.64861405]
[1753110797443,16.78468397,196.9,196.88,15.64861405]
[1753110797765,16.78468397,196.93,196.88,15.64861405]
[1753110797940,16.78468397,196.93,196.86,0.69]
[1753110797941,15.64861405,196.95,196.89,15.64861405]
[1753110798142,16.78468397,196.94,196.9,56.06861405]
[1753110798348,5.7969427,196.97,196.9,40.42]
[1753110798349,16.78468397,196.95,196.9,40.42]
[1753110798659,32.43329802,196.95,196.91,40.44]
[1753110798834,16.78468397,196.95,196.91,40.44]
[1753110799041,32.43329802,196.96,196.92,40.44]
[1753110799237,16.78468397,196.96,196.91,40.44]
[1753110799432,32.43329802,196.96,196.91,40.44]
[1753110799845,15.64861405,196.95,196.91,40.44]
[1753110800040,16.78468397,196.96,196.91,40.44]
[1753110800041,16.78468397,196.96,196.91,56.08861405]
[1753110800456,32.43329802,196.96,196.91,40.44]
[1753110800634,16.78468397,196.97,196.92,16.33861405]
[1753110800839,0.72,197.09,196.96,15.64861405]
[1753110801142,0.72,197.09,196.98,15.64861405]
[1753110801143,15.64861405,197.04,196.98,15.64861405]
[1753110801541,15.64861405,196.99,196.97,40.42]
[1753110801764,16.78468397,196.98,196.97,40.44]
[1753110802260,16.78468397,196.99,196.98,5.07665752]
[1753110802576,37.50821712,197.05,196.98,56.08861405]
[1753110802753,37.50821712,197.05,196.99,15.64861405]
[1753110803180,37.50821712,197.05,196.98,40.44]
[1753110803671,32.43329802,197.04,196.98,5.07663255]
[1753110803871,16.78468397,196.99,196.94,15.64861405]
[1753110804043,16.78468397,196.99,196.92,0.69]
[1753110804044,16.78468397,196.97,196.95,40.42]
[1753110804871,32.43329802,196.97,196.91,15.64861405]
[1753110805077,32.43329802,196.97,196.92,40.42]
[1753110805291,16.78468397,196.97,196.92,61.1466884]
[1753110805569,16.78468397,196.97,196.93,15.64861405]
[1753110805764,16.78468397,196.97,196.94,40.42]
[1753110805945,16.78468397,196.96,196.94,40.42]
[1753110806350,16.78468397,197.02,196.95,16.33861405]
[1753110806562,16.78468397,197.02,196.99,15.64861405]
[1753110806739,16.78468397,197.04,197.0,40.42]
[1753110806944,16.78468397,197.02,197.0,40.42]
[1753110807257,16.78468397,197.03,196.98,20.72523124]
[1753110807452,16.78468397,197.03,197.01,40.42]
[1753110807659,0.72,197.15,197.05,26.0]
[1753110807861,146.83706428,197.32,197.02,16.33861405]
[1753110807862,9.329,197.26,197.14,15.64861405]
[1753110808044,16.36861405,197.27,197.21,15.64861405]
[1753110808384,21.43712119,197.3,197.23,15.64861405]
[1753110808870,20.71680476,197.31,197.25,15.64861405]
[1753110809053,0.72,197.34,197.25,15.64861405]
[1753110809362,20.71569079,197.36,197.3,15.64861405]
[1753110809540,20.71569079,197.36,197.25,1.19697084]
[1753110809541,20.71569079,197.36,197.31,40.42]
[1753110809742,40.48,197.42,197.31,41.11]
[1753110809940,15.64861405,197.32,197.31,40.42]
[1753110810165,16.36861405,197.32,197.31,40.42]
[1753110810343,16.78468397,197.31,197.21,15.64861405]
[1753110810540,15.64861405,197.23,197.16,0.69]
[1753110810742,16.78468397,197.2,197.17,40.4]
[1753110810943,15.64861405,197.22,197.17,40.4]
[1753110811145,27.96784765,197.41,197.2,26.0]
[1753110811363,0.72,197.36,197.28,15.64861405]
[1753110811563,15.64861405,197.33,197.27,56.02861405]
[1753110811773,16.78468397,197.31,197.27,40.38]
[1753110812144,15.64861405,197.32,197.18,0.50715082]
[1753110812145,32.43329802,197.29,197.2,26.0]
[1753110812344,0.72,197.3,197.22,15.64861405]
[1753110812345,16.78468397,197.27,197.22,15.64861405]
[1753110812542,15.64861405,197.23,197.21,40.38]
[1753110812757,16.36861405,197.22,197.17,40.38]
[1753110812964,26.0,197.29,197.12,0.72]
[1753110812965,32.43329802,197.2,197.12,0.72]
[1753110813167,0.72,197.21,197.12,0.72]
[1753110813168,16.78468397,197.17,197.13,40.38]
[1753110813495,15.64861405,197.15,197.13,40.38]
[1753110813672,16.78468397,197.16,197.13,40.38]
[1753110814269,5.07173839,197.18,197.03,21.9233731]
[1753110814270,32.43329802,197.14,197.1,40.38]
[1753110814475,16.78468397,197.11,197.1,40.38]
[1753110814768,16.78468397,197.11,197.08,40.36]
[1753110814977,16.78468397,197.11,197.03,0.72]
[1753110814978,15.64861405,197.11,197.07,40.36]
[1753110815265,16.78468397,197.17,197.07,40.36]
[1753110815266,16.78468397,197.12,197.07,40.36]
[1753110815465,16.78468397,197.12,197.07,56.00861405]
[1753110815669,16.78468397,197.09,197.07,40.36]
[1753110816259,15.64861405,197.1,197.07,40.36]
[1753110816260,16.78468397,197.1,197.07,40.36]
[1753110816447,15.64861405,197.08,197.07,40.36]
[1753110816648,15.64861405,197.08,197.0,15.64861405]
[1753110816649,16.36861405,197.08,197.0,15.64861405]
[1753110816873,16.78468397,197.11,197.06,15.64861405]
[1753110817070,16.78468397,197.13,197.08,15.64861405]
[1753110817448,0.72,197.17,197.1,15.64861405]
[1753110817647,22.12800557,197.18,197.15,15.64861405]
[1753110817867,14.9243815,197.29,197.11,40.36]
[1753110817868,15.64861405,197.23,197.16,15.64861405]
[1753110818075,15.64861405,197.23,197.11,40.36]
[1753110818076,16.78468397,197.18,197.11,26.0]
[1753110818269,16.78468397,197.18,197.14,40.36]
[1753110818472,16.78468397,197.21,197.14,40.36]
[1753110818772,0.72,197.25,197.19,15.64861405]
[1753110818972,16.36861405,197.25,197.19,15.64861405]
[1753110819179,16.78468397,197.23,197.18,15.64861405]
[1753110819470,17.50468397,197.23,197.18,15.64861405]
[1753110819670,17.50468397,197.23,197.14,40.36]
[1753110819671,16.78468397,197.21,197.16,15.64861405]
[1753110819853,16.78468397,197.21,197.17,15.64861405]
[1753110820663,17.71485599,197.3,197.17,15.64861405]
[1753110820664,15.64861405,197.25,197.19,15.64861405]
[1753110820876,16.78468397,197.24,197.2,15.64861405]
[1753110821075,15.64861405,197.29,197.23,15.64861405]
[1753110821388,16.36861405,197.28,197.22,15.64861405]
[1753110821565,16.36861405,197.28,197.22,55.98861405]
[1753110821766,16.78468397,197.26,197.22,40.34]
[1753110821975,17.50468397,197.26,197.22,40.34]
[1753110822478,16.78468397,197.27,197.22,55.98861405]
[1753110822683,17.50468397,197.27,197.22,55.98861405]
[1753110823489,33.15329802,197.27,197.22,40.34]
[1753110823689,33.15329802,197.27,197.22,45.4103111]
[1753110824001,16.78468397,197.29,197.26,15.64861405]
[1753110824162,16.78468397,197.29,197.23,0.72]
[1753110824163,16.78468397,197.29,197.27,15.64861405]
[1753110824364,0.72,197.34,197.27,40.34]
[1753110824365,15.64861405,197.32,197.27,40.34]
[1753110824565,15.64861405,197.28,197.22,5.0703111]
[1753110824784,16.78468397,197.27,197.23,40.34]
[1753110824987,15.64861405,197.3,197.23,40.34]
[1753110825178,15.64861405,197.28,197.23,15.64861405]
[1753110825381,16.78468397,197.29,197.25,15.64861405]
[1753110825581,16.36861405,197.31,197.25,15.64861405]
[1753110825891,16.78468397,197.3,197.23,45.41000305]
[1753110826083,16.78468397,197.3,197.25,15.64861405]
[1753110826388,16.78468397,197.3,197.23,45.41000305]
[1753110826389,16.36861405,197.29,197.23,61.0586171]
[1753110826575,16.36861405,197.29,197.23,55.98861405]
[1753110826776,16.78468397,197.28,197.24,15.64861405]
[1753110827182,15.64861405,197.32,197.26,15.64861405]
[1753110827873,16.78468397,197.33,197.27,15.64861405]
[1753110828074,16.78468397,197.33,197.26,31.06935726]
[1753110828284,16.78468397,197.33,197.28,15.64861405]
[1753110828876,16.78468397,197.35,197.3,15.64861405]
[1753110829278,17.50468397,197.35,197.3,15.64861405]
[1753110829603,17.50468397,197.35,197.28,45.38891953]
[1753110829604,32.43329802,197.33,197.28,40.3]
[1753110829779,0.72,197.32,197.28,40.3]
[1753110830098,32.43329802,197.33,197.28,40.3]
[1753110830293,33.15329802,197.33,197.28,40.3]
[1753110830478,16.78468397,197.33,197.28,55.94861405]
[1753110830673,16.78468397,197.31,197.28,40.3]
[1753110830890,16.78468397,197.28,197.25,40.3]
[1753110831197,16.78468397,197.26,197.21,15.64861405]
[1753110831492,32.43329802,197.26,197.22,40.3]
[1753110832171,15.64861405,197.28,197.22,56.66861405]
[1753110832376,16.78468397,197.26,197.2,5.07095556]
[1753110832577,16.78468397,197.26,197.2,15.64861405]
[1753110832578,15.64861405,197.26,197.2,15.64861405]
[1753110832791,32.43329802,197.25,197.17,0.72]
[1753110832995,32.43329802,197.25,197.19,15.64861405]
[1753110833179,32.43329802,197.27,197.21,15.64861405]
[1753110833374,15.64861405,197.26,197.2,55.92861405]
[1753110833693,16.78468397,197.25,197.2,55.92861405]
[1753110833997,6.51834979,197.34,197.23,41.64861405]
[1753110834203,15.64861405,197.41,197.3,26.0]
[1753110834375,16.42861405,197.42,197.35,15.64861405]
[1753110834576,16.42861405,197.42,197.36,40.28]
[1753110834577,15.64861405,197.41,197.36,40.28]
[1753110834776,0.06,197.42,197.36,55.92861405]
[1753110834991,0.06,197.42,197.36,56.64861405]
[1753110835494,0.06,197.42,197.36,46.06688285]
[1753110835692,0.06,197.42,197.36,45.34688285]
[1753110836020,16.84468397,197.42,197.36,61.7154969]
[1753110836705,15.70861405,197.42,197.36,26.0]
[1753110836898,16.78468397,197.4,197.36,66.28]
[1753110837200,16.78468397,197.4,197.36,26.0]
[1753110837400,16.78468397,197.41,197.36,15.64861405]
[1753110837589,16.78468397,197.41,197.36,41.64861405]
[1753110838088,0.06,197.42,197.36,82.62861405]
[1753110838406,0.06,197.42,197.36,61.6954969]
[1753110839003,0.06,197.43,197.36,61.6954969]
[1753110839004,0.06,197.43,197.41,15.64861405]
[1753110839177,0.06,197.45,197.37,1.22666261]
[1753110839373,0.06,197.45,197.42,15.64861405]
[1753110839579,0.06,197.45,197.43,40.26]
[1753110839805,0.06,197.45,197.43,55.90861405]
[1753110840607,16.78468397,197.43,197.25,31.63500092]
[1753110840819,15.64861405,197.36,197.3,15.64861405]
[1753110841004,16.78468397,197.41,197.31,40.24]
[1753110841005,32.43329802,197.34,197.31,40.24]
[1753110841199,0.71,197.41,197.33,15.64861405]
[1753110841395,15.64861405,197.4,197.34,15.64861405]
[1753110841596,16.78468397,197.36,197.32,15.64861405]
[1753110841892,15.64861405,197.4,197.34,15.64861405]
[1753110842099,16.78468397,197.42,197.33,40.24]
[1753110842395,0.06,197.45,197.33,40.24]
[1753110842396,0.06,197.45,197.41,15.64861405]
[1753110842604,0.06,197.45,197.44,41.64861405]
[1753110842809,0.06,197.45,197.44,81.88861405]
[1753110843013,0.06,197.45,197.44,82.56861405]
[1753110843399,1e-08,197.45,197.44,42.83509703]
[1753110843597,0.06,197.51,197.44,83.07509703]
[1753110843815,0.06,197.51,197.5,15.64861405]
[1753110844108,0.1,197.58,197.52,26.0]
[1753110844311,0.1,197.58,197.56,15.64861405]
[1753110844514,0.81,197.58,197.55,40.22]
[1753110844689,0.1,197.58,197.55,40.22]
[1753110845413,0.1,197.58,197.55,55.86861405]
[1753110845613,0.1,197.58,197.53,0.3561183]
[1753110845819,16.88468397,197.58,197.54,15.64861405]
[1753110845993,16.88468397,197.58,197.53,0.3561183]
[1753110845994,16.78468397,197.55,197.53,0.3561183]
[1753110846193,32.43329802,197.54,197.53,0.3561183]
[1753110846394,33.14329802,197.54,197.53,0.3561183]
[1753110846593,33.14329802,197.54,197.39,15.64861405]
[1753110846594,21.84720611,197.53,197.39,15.64861405]
[1753110846909,16.78468397,197.56,197.41,10.0]
[1753110847096,0.1,197.58,197.55,15.64861405]
[1753110847300,0.1,197.58,197.56,40.70617533]
[1753110847601,0.2,197.65,197.6,26.0]
[1753110847797,0.2,197.65,197.57,56.35476376]
[1753110847798,0.2,197.65,197.64,26.0]
[1753110848001,0.2,197.65,197.64,41.64861405]
[1753110848420,0.2,197.65,197.64,42.32861405]
[1753110848600,0.2,197.65,197.64,41.64861405]
[1753110848795,16.78468397,197.64,197.57,0.68]
[1753110849007,16.78468397,197.62,197.58,40.2]
[1753110849205,16.78468397,197.63,197.58,15.64861405]
[1753110849402,17.49468397,197.63,197.59,40.2]
[1753110849605,15.84861405,197.65,197.59,55.84861405]
[1753110849808,16.78468397,197.64,197.57,26.0]
[1753110850122,15.64861405,197.62,197.57,40.18]
[1753110850305,16.78468397,197.64,197.58,0.29487072]
[1753110850621,16.78468397,197.64,197.61,41.64861405]
[1753110850793,0.2,197.65,197.62,15.64861405]
[1753110850994,16.98468397,197.65,197.61,81.82861405]
[1753110851425,0.2,197.65,197.64,15.64861405]
[1753110851715,0.2,197.65,197.64,41.64861405]
[1753110852095,0.2,197.65,197.64,16.32861405]
[1753110852490,0.2,197.65,197.64,46.70831856]
[1753110852694,0.2,197.65,197.64,26.0]
[1753110852927,0.2,197.65,197.64,82.48861405]
[1753110853226,0.2,197.65,197.64,82.9945845]
[1753110853627,0.2,197.65,197.64,42.32861405]
[1753110853929,0.2,197.65,197.64,81.80861405]
[1753110854301,0.7,197.65,197.64,81.80861405]
[1753110854499,0.7,197.65,197.64,87.54831856]
[1753110855417,0.7,197.65,197.64,86.86831856]
[1753110855632,17.48468397,197.65,197.63,15.64861405]
[1753110855815,17.48468397,197.65,197.64,40.14]
[1753110856021,17.48468397,197.65,197.64,26.0]
[1753110856204,16.78468397,197.64,197.58,0.29487072]
[1753110856398,15.64861405,197.61,197.59,40.14]
[1753110856604,16.78468397,197.6,197.58,0.29487072]
[1753110856813,16.78468397,197.63,197.59,55.78861405]
[1753110857000,16.78468397,197.64,197.62,15.64861405]
[1753110857194,16.78468397,197.64,197.63,55.78861405]
[1753110857403,0.71,197.75,197.66,26.0]
[1753110857607,0.71,197.75,197.66,81.78861405]
[1753110857818,15.64861405,197.73,197.66,26.0]
[1753110858026,16.78468397,197.72,197.66,55.78861405]
[1753110858552,15.64861405,197.74,197.66,55.78861405]
[1753110858553,16.78468397,197.75,197.66,45.19919255]
[1753110858727,16.41861405,197.67,197.6,5.06072874]
[1753110858897,16.41861405,197.67,197.59,0.50609848]
[1753110858898,16.78468397,197.66,197.62,15.64861405]
[1753110859092,16.78468397,197.66,197.61,40.14]
[1753110859318,0.71,197.66,197.62,15.64861405]
[1753110859515,16.84468397,197.67,197.64,15.64861405]
[1753110859816,0.06,197.67,197.66,15.64861405]
[1753110860009,0.06,197.67,197.66,81.78861405]
[1753110860723,0.06,197.67,197.66,86.8478066]
[1753110861228,0.06,197.67,197.66,87.5278066]
[1753110861409,0.06,197.67,197.66,45.19919255]
[1753110861611,0.06,197.67,197.66,60.8478066]
[1753110862008,0.06,197.67,197.66,86.8478066]
[1753110862211,0.06,197.71,197.69,26.0]
[1753110862506,0.06,197.71,197.7,55.76861405]
[1753110862714,0.06,197.71,197.7,60.82678299]
[1753110862907,0.06,197.71,197.7,61.50678299]
[1753110863109,0.06,197.71,197.7,66.12]
[1753110863531,32.49329802,197.71,197.7,40.12]
[1753110863713,33.20329802,197.71,197.68,66.12]
[1753110863909,16.78468397,197.69,197.68,66.12]
[1753110864429,16.84468397,197.71,197.68,66.12]
[1753110864721,0.06,197.71,197.68,71.17858517]
[1753110864924,0.06,197.71,197.68,86.82719922]
[1753110865125,0.06,197.71,197.68,46.70719922]
[1753110865305,0.06,197.71,197.68,86.82719922]
[1753110865829,0.06,197.71,197.7,15.64861405]
[1753110866009,0.06,197.71,197.69,15.64861405]
[1753110866409,0.06,197.71,197.68,71.17867361]
[1753110866705,0.06,197.71,197.69,15.64861405]
[1753110866907,0.06,197.71,197.68,66.12]
[1753110867531,16.84468397,197.71,197.68,66.12]
[1753110867701,0.06,197.71,197.68,66.12]
[1753110868025,0.77,197.71,197.68,66.12]
[1753110868325,0.71,197.7,197.68,40.12]
[1753110868911,0.06,197.71,197.68,40.12]
[1753110869107,0.06,197.71,197.68,55.76861405]
[1753110869429,16.78468397,197.68,197.64,0.03]
[1753110869614,5.11802998,197.71,197.66,15.64861405]
[1753110869615,0.06,197.71,197.66,15.64861405]
[1753110869935,0.06,197.71,197.69,15.64861405]
[1753110870132,16.78468397,197.69,197.68,40.1]
[1753110870426,16.35861405,197.69,197.66,40.1]
[1753110870606,16.78468397,197.67,197.66,40.1]
[1753110870806,15.64861405,197.67,197.66,40.1]
[1753110871009,16.35861405,197.67,197.66,40.1]
[1753110871204,0.71,197.67,197.66,40.1]
[1753110871410,0.71,197.67,197.64,0.03]
[1753110871411,16.35861405,197.67,197.64,0.03]
[1753110871623,16.78468397,197.65,197.64,0.03]
[1753110872207,0.65,197.7,197.64,0.03]
[1753110872408,32.43329802,197.69,197.64,0.03]
[1753110872722,32.43329802,197.65,197.64,0.03]
[1753110873111,38.14274654,197.65,197.64,0.03]
[1753110873424,38.14274654,197.65,197.58,0.29487072]
[1753110873425,16.78468397,197.64,197.58,0.29487072]
[1753110873727,16.78468397,197.58,197.56,0.03]
[1753110873926,32.43329802,197.57,197.56,0.03]
[1753110874117,33.08329802,197.57,197.56,0.03]
[1753110874619,33.08329802,197.57,197.47,15.64861405]
[1753110874620,16.78468397,197.56,197.44,0.2]
[1753110874829,16.78468397,197.47,197.44,0.2]
[1753110875127,16.78468397,197.48,197.44,15.84861405]
[1753110875344,16.78468397,197.48,197.45,15.64861405]
[1753110875508,32.43329802,197.5,197.44,20.91331939]
[1753110875909,16.78468397,197.51,197.46,15.64861405]
[1753110876225,16.78468397,197.51,197.48,15.64861405]
[1753110876526,16.78468397,197.53,197.49,15.64861405]
[1753110876732,16.78468397,197.54,197.5,15.64861405]
[1753110876934,16.29861405,197.56,197.51,15.64861405]
[1753110876935,16.78468397,197.55,197.51,15.64861405]
[1753110877119,0.65,197.6,197.54,15.64861405]
[1753110877324,16.78468397,197.59,197.54,15.64861405]
[1753110877532,15.64861405,197.55,197.46,5.0642849]
[1753110877739,0.65,197.6,197.54,15.64861405]
[1753110878043,0.65,197.6,197.56,15.64861405]
[1753110878228,16.29861405,197.6,197.51,0.68]
[1753110878546,16.78468397,197.59,197.54,15.64861405]
[1753110878838,16.78468397,197.59,197.52,26.0]
[1753110878839,16.78468397,197.61,197.56,15.64861405]
[1753110879025,32.43329802,197.61,197.55,15.64861405]
[1753110879219,16.78468397,197.59,197.54,15.64861405]
[1753110879442,17.43468397,197.59,197.54,15.64861405]
[1753110879629,17.43468397,197.59,197.55,15.64861405]
[1753110879830,15.64861405,197.61,197.55,15.64861405]
[1753110880144,32.43329802,197.6,197.53,5.06252214]
[1753110880451,32.43329802,197.6,197.54,15.64861405]
[1753110880746,16.78468397,197.58,197.53,41.64861405]
[1753110880926,16.78468397,197.58,197.54,5.06226587]
[1753110881439,16.78468397,197.58,197.51,15.64861405]
[1753110881653,16.78468397,197.58,197.53,15.64861405]
[1753110881841,16.78468397,197.54,197.5,15.64861405]
[1753110882029,32.43329802,197.54,197.46,18.40510887]
[1753110882341,16.78468397,197.52,197.47,15.64861405]
[1753110882541,16.78468397,197.55,197.51,15.64861405]
[1753110882846,5.0608512,197.6,197.49,26.0]
[1753110882847,16.78468397,197.59,197.54,15.64861405]
[1753110883036,17.43468397,197.59,197.55,15.64861405]
[1753110883339,16.78468397,197.61,197.58,15.64861405]
[1753110883639,16.78468397,197.59,197.56,26.0]
[1753110883821,16.78468397,197.59,197.56,41.64861405]
[1753110884141,16.78468397,197.61,197.57,15.64861405]
[1753110884522,17.43468397,197.61,197.57,15.64861405]
[1753110885553,16.78468397,197.64,197.59,15.64861405]
[1753110885847,16.78468397,197.62,197.57,20.71011056]
[1753110886525,16.78468397,197.62,197.57,5.06149651]
[1753110886743,32.43329802,197.64,197.58,15.64861405]
[1753110886938,32.43329802,197.64,197.57,5.74149651]
[1753110887127,16.78468397,197.64,197.61,26.0]
[1753110887328,18.28441579,197.67,197.61,41.64861405]
[1753110887545,16.78468397,197.66,197.63,15.64861405]
[1753110887950,32.43329802,197.64,197.6,26.0]
[1753110888137,17.43468397,197.64,197.62,26.0]
[1753110888462,17.43468397,197.64,197.6,26.0]
[1753110888463,33.08329802,197.64,197.59,41.64861405]
[1753110888633,0.65,197.63,197.59,26.0]
[1753110888826,16.78468397,197.64,197.59,41.64861405]
[1753110889033,21.889033,197.71,197.49,0.03]
[1753110889034,16.78468397,197.68,197.63,15.64861405]
[1753110889251,0.06,197.71,197.67,15.64861405]
[1753110889554,0.06,197.71,197.7,26.0]
[1753110889740,0.06,197.71,197.65,26.0]
[1753110889935,32.43329802,197.7,197.65,41.64861405]
[1753110890135,17.43468397,197.7,197.67,26.0]
[1753110890442,17.43468397,197.7,197.65,15.64861405]
[1753110890752,17.43468397,197.7,197.65,41.64861405]
[1753110890953,17.43468397,197.7,197.66,15.64861405]
[1753110891149,17.43468397,197.7,197.65,26.0]
[1753110891451,17.43468397,197.7,197.64,15.64861405]
[1753110891452,32.43329802,197.68,197.64,31.05967666]
[1753110891654,5.1180262,197.71,197.6,15.64861405]
[1753110891655,16.78468397,197.65,197.6,15.64861405]
[1753110891851,16.78468397,197.65,197.59,31.06076263]
[1753110892055,16.78468397,197.65,197.6,15.64861405]
[1753110892260,16.78468397,197.65,197.61,15.64861405]
[1753110892546,16.78468397,197.66,197.63,15.64861405]
[1753110892752,16.78468397,197.68,197.63,15.64861405]
[1753110892939,33.08329802,197.68,197.62,15.64861405]
[1753110893135,5.1180262,197.71,197.59,5.74076263]
[1753110893136,16.78468397,197.64,197.59,15.64861405]
[1753110893345,16.78468397,197.64,197.6,15.64861405]
[1753110893545,16.78468397,197.66,197.61,15.64861405]
[1753110893746,32.43329802,197.66,197.6,41.64861405]
[1753110894263,15.64861405,197.64,197.55,1.18620096]
[1753110894437,15.64861405,197.64,197.61,26.0]
[1753110894640,15.64861405,197.65,197.61,26.0]
[1753110894837,16.78468397,197.64,197.61,26.0]
[1753110895234,0.65,197.68,197.61,46.70897785]
[1753110895542,0.65,197.68,197.55,15.64861405]
[1753110895543,16.78468397,197.61,197.55,15.64861405]
[1753110895739,32.43329802,197.61,197.58,26.0]
[1753110895939,0.65,197.63,197.58,26.0]
[1753110896136,16.78468397,197.59,197.58,26.0]
[1753110896362,16.78468397,197.59,197.54,0.68]
[1753110896363,16.78468397,197.59,197.57,26.0]
[1753110896570,16.78468397,197.59,197.57,31.06141225]
[1753110897470,15.64861405,197.59,197.53,15.64861405]
[1753110897638,15.64861405,197.59,197.5,0.68]
[1753110897639,15.64861405,197.59,197.54,20.71086658]
[1753110898257,15.64861405,197.59,197.54,5.06225253]
[1753110898465,15.64861405,197.59,197.49,0.03]
[1753110898466,32.43329802,197.55,197.49,0.03]
[1753110898664,22.64366128,197.64,197.51,15.64861405]
[1753110898665,5.06006936,197.63,197.51,15.64861405]
[1753110898961,16.78468397,197.58,197.53,15.64861405]
[1753110899329,16.78468397,197.56,197.52,26.0]
[1753110899536,5.06006936,197.63,197.49,18.43241632]
[1753110899537,16.78468397,197.53,197.49,5.09354752]
[1753110899960,16.78468397,197.54,197.49,20.74216157]
[1753110900171,16.78468397,197.54,197.49,0.03]
[1753110900342,32.43329802,197.5,197.49,0.03]
[1753110900536,16.78468397,197.49,197.44,0.2]
[1753110900737,16.78468397,197.45,197.44,0.2]
[1753110900949,0.65,197.52,197.44,20.91330811]
[1753110901148,16.78468397,197.51,197.49,15.64861405]
[1753110901363,16.78468397,197.52,197.49,15.64861405]
[1753110901540,17.25091419,197.59,197.49,15.64861405]
[1753110901541,0.69,197.58,197.51,15.64861405]
[1753110901755,16.78468397,197.57,197.56,15.64861405]
[1753110901939,16.78468397,197.6,197.56,15.64861405]
[1753110902136,0.69,197.61,197.58,15.64861405]
[1753110902348,0.69,197.61,197.52,26.0]
[1753110902349,16.33861405,197.65,197.59,15.64861405]
[1753110902546,16.33861405,197.65,197.52,26.0]
[1753110902547,0.69,197.65,197.6,15.64861405]
[1753110902748,17.47468397,197.64,197.59,15.64861405]
[1753110903071,22.37225901,197.67,197.57,26.0]
[1753110903258,15.64861405,197.65,197.57,26.0]
[1753110903598,21.68225901,197.67,197.6,15.64861405]
[1753110903737,0.06,197.71,197.66,15.64861405]
[1753110903934,0.06,197.71,197.67,15.64861405]
[1753110904152,0.06,197.71,197.7,15.64861405]
[1753110904654,0.06,197.71,197.64,26.0]
[1753110904963,0.06,197.71,197.7,15.64861405]
[1753110905261,0.06,197.71,197.7,41.64861405]
[1753110905469,0.06,197.71,197.7,42.34861405]
[1753110906539,15.64861405,197.81,197.7,26.7]
[1753110906762,15.64861405,197.77,197.71,15.64861405]
[1753110906961,16.78468397,197.77,197.72,15.64861405]
[1753110907276,16.78468397,197.76,197.71,15.64861405]